[Event "ESTCC U65 2018"]
[Site "Walbrzych"]
[Date "2018.04.15"]
[Round "2"]
[White "Baumbach, Friedrich"]
[Black "Alkkiomaki, Jyrki"]
[Result "0-1"]
[ECO "D30"]
[WhiteElo "2172"]
[BlackElo "1967"]
[Annotator "NA RC"]
[PlyCount "74"]
[EventDate "2018.??.??"]
[EventCountry "POL"]
[SourceTitle "playchess.com"]
[Source "ChessBase"]
[SourceQuality "1"]
[WhiteTeam "Germany"]
[BlackTeam "Finland"]
[WhiteTeamCountry "GER"]
[BlackTeamCountry "FIN"]
[TimeControl "40/5400+30:1800+30"]

1. d4 {[%emt 0:00:00]} d5 {[%emt 0:00:06]} 2. c4 {[%emt 0:00:00]} e6 {[%emt 0:00:06]} 3. Nf3 {[%emt 0:00:03]} c5 {[%emt 0:00:45]} 4. cxd5 {[%emt 0:00:11]} exd5 {[%emt 0:00:09]} 5. g3 {[%emt 0:00:14]} Nc6 {[%emt 0:00:16]} 6. Bg2 {[%emt 0:00:14]} Nf6 {[%emt 0:00:08]} 7. O-O {[%emt 0:00:22]} Be7 {[%emt 0:00:07]} 8. dxc5 {[%emt 0:00:32]} Bxc5 {[%emt 0:00:13]} 9. a3 {[%emt 0:00:12]} O-O {[%emt 0:00:27]} 10. b4 {[%emt 0:00:12]} Bd6 {[%emt 0:00:55]} 11. Bb2 {[%emt 0:00:11]} Re8 {[%emt 0:02:21]} 12. Nc3 {[%emt 0:01:23]} Bc7 {[%emt 0:11:19]} 13. Nb5 {[%emt 0:08:58]} Bb6 {[%emt 0:03:13]} 14. Qd3 {[%emt 0:04:58]} Qe7 {[%emt 0:07:56]} 15. e3 {[%emt 0:05:30]} Bg4 {[%emt 0:10:13]} 16. Nbd4 {[%emt 0:05:25]} Nxd4 17. Nxd4 Qe5 {[%emt 0:07:28]} 18. Rac1 {[%emt 0:12:51]} Qh5 $16 {[%emt 0:05:48]} 19. Rfe1 {[%emt 0:09:51]} Rad8 {[%emt 0:06:43]} 20. a4 {[%emt 0:03:16]} Rd7 {[%emt 0:03:34]} 21. a5 {[%emt 0:05:17]} Bd8 {[%emt 0:01:38]} 22. Rc2 {[%emt 0:12:11]} a6 {[%emt 0:06:48]} 23. Rec1 {[%emt 0:07:10]} Rde7 {[%emt 0:01:14]} 24. Ne2 {[%emt 0:02:04]} Bf5 {[%emt 0:02:12]} 25. Qd2 {[%emt 0:02:57]} Bxc2 {[%emt 0:01:39]} 26. Rxc2 {[%emt 0:00:02]} Ne4 {[%emt 0:04:42]} 27. Qd4 {[%emt 0:02:08]} Nf6 {[%emt 0:02:41]} 28. Nf4 {[%emt 0:05:14]} Qf5 {[%emt 0:00:41]} 29. Rc1 {[%emt 0:00:32]} Rc7 {[%emt 0:02:55]} 30. Rxc7 {[%emt 0:01:16]} Bxc7 {[%emt 0:00:09]} 31. Nxd5 {[%emt 0:00:33]} Be5 {[%emt 0:00:43]} 32. Nxf6+ {[%emt 0:05:17]} gxf6 {[%emt 0:00:20]} 33. Qd2 {[%emt 0:00:52]} Qb1+ {[%emt 0:00:17]} 34. Bc1 {[%emt 0:00:19]} Rc8 {[%emt 0:00:07]} 35. Bxb7 {[%emt 0:00:59]} Qxc1+ {[%emt 0:01:19]} 36. Qxc1 {[%emt 0:00:01]} Rxc1+ {[%emt 0:00:15]} 37. Kg2 {[%emt 0:00:02]} Rb1 {[%emt 0:00:34]} 0-1

[Event "ESTCC U65 2018"]
[Site "Walbrzych"]
[Date "2018.04.15"]
[Round "2"]
[White "Malmdin, Nils-Ake"]
[Black "Karppinen, Martti"]
[Result "1-0"]
[ECO "B00"]
[WhiteElo "2154"]
[BlackElo "1894"]
[Annotator "NA RC"]
[PlyCount "75"]
[EventDate "2018.??.??"]
[EventCountry "POL"]
[SourceTitle "playchess.com"]
[Source "ChessBase"]
[SourceQuality "1"]
[WhiteTeam "Sweden"]
[BlackTeam "Finland"]
[WhiteTeamCountry "SWE"]
[BlackTeamCountry "FIN"]
[TimeControl "40/5400+30:1800+30"]

1. e4 {[%emt 0:00:00]} d6 {[%emt 0:00:18]} 2. d4 {[%emt 0:00:11]} e5 {[%emt 0:00:15]} 3. Nf3 {[%emt 0:01:00]} Bg4 {[%emt 0:01:50]} 4. dxe5 {[%emt 0:11:24]} Bxf3 {[%emt 0:01:53] C41: Philidor Defence} (4... Nd7 5. exd6 Bxd6 6. Nc3 Ngf6 7. Be2 Qe7 8. Nd4 Bxe2 9. Qxe2 Bb4 10. O-O Bxc3 11. bxc3 O-O 12. f3 Qc5 13. Qe3 Rfe8 14. Nf5 {1-0 (27) Mareco,S (2591)-Tristan,L (2444) Buenos Aires 2011}) 5. gxf3 {[%emt 0:02:30]} dxe5 {[%emt 0:01:31]} 6. Qxd8+ {[%emt 0:00:11]} Kxd8 {[%emt 0:00:40]} 7. Rg1 {[%emt 0:00:35]} Nd7 $146 {[%emt 0:02:26]} ({Predecessor:} 7... Nc6 8. c3 f6 9. Be3 Nge7 10. Na3 a6 11. Nc2 Ng6 12. O-O-O+ {1-0 (33) Nieto Rubio,J (1901)-Pablos Ceruelo,O Madrid 2009}) 8. Nc3 {[%emt 0:04:59]} c6 {[%emt 0:02:40]} 9. Be3 {[%emt 0:03:30]} Kc7 {[%emt 0:03:07]} 10. O-O-O {[%emt 0:01:58]} g6 {[%emt 0:08:07]} 11. Bh3 {[%emt 0:03:35]} Ngf6 {[%emt 0:10:56]} 12. Bg5 {[%emt 0:18:35]} h5 {[%emt 0:11:55]} 13. f4 {[%emt 0:02:33]} Bh6 {[%emt 0:06:38]} 14. fxe5 {[%emt 0:09:39]} Nxe5 {[%emt 0:02:02]} 15. Bxh6 $1 {[%emt 0:00:37]} Rxh6 {[%emt 0:00:26]} 16. f4 {[%emt 0:00:47]} Neg4 {[%emt 0:04:41]} 17. e5 {[%emt 0:05:56]} Nf2 {[%emt 0:05:08]} 18. exf6 {[%emt 0:02:44]} Nxh3 {[%emt 0:02:03]} 19. Rge1 {[%emt 0:00:01]} Nxf4 {[%emt 0:10:10]} 20. Re7+ {[%emt 0:00:58]} Kb6 {[%emt 0:00:33]} 21. Na4+ {[%emt 0:04:51]} Ka5 {[%emt 0:07:20]} 22. Nc5 {[%emt 0:05:57]} b6 {[%emt 0:02:30]} 23. Nb3+ {[%emt 0:03:51]} Ka6 {[%emt 0:01:03]} 24. Rxf7 {[%emt 0:00:52]} Nd5 {[%emt 0:04:29]} 25. c4 {[%emt 0:02:49]} Ne3 $18 {[%emt 0:01:05]} 26. Rd4 {[%emt 0:00:38]} g5 {[%emt 0:00:34]} 27. Re4 {[%emt 0:01:13]} Ng4 {[%emt 0:00:44]} 28. Re6 {[%emt 0:00:13]} Rg6 {[%emt 0:05:18]} 29. Nd4 {[%emt 0:00:36]} c5 {[%emt 0:01:00]} 30. Nb5 {[%emt 0:00:26]} Ka5 {[%emt 0:00:52]} 31. a3 {[%emt 0:00:50]} a6 {[%emt 0:00:50]} 32. Nd6 {[%emt 0:02:41]} Rb8 {[%emt 0:00:52]} 33. b3 {[%emt 0:01:59]} Rh6 {[%emt 0:01:26]} 34. Kb2 {[%emt 0:00:42]} Rg6 {[%emt 0:00:32]} 35. Kc3 {[%emt 0:00:16]} Nf2 {[%emt 0:00:22]} 36. b4+ {[%emt 0:00:33]} cxb4+ {[%emt 0:00:22]} 37. axb4+ {[%emt 0:00:15]} Ka4 {[%emt 0:00:12]} 38. Re1 {[%emt 0:00:09]} 1-0

[Event "ESTCC U65 2018"]
[Site "Walbrzych"]
[Date "2018.04.15"]
[Round "2"]
[White "Giulian, Philip M"]
[Black "Sorensen, Bent"]
[Result "1-0"]
[ECO "D46"]
[WhiteElo "2124"]
[BlackElo "2158"]
[Annotator "NA RC"]
[PlyCount "51"]
[EventDate "2018.??.??"]
[EventCountry "POL"]
[SourceTitle "playchess.com"]
[Source "ChessBase"]
[SourceQuality "1"]
[WhiteTeam "Scotland"]
[BlackTeam "Denmark"]
[WhiteTeamCountry "SCO"]
[BlackTeamCountry "DEN"]
[TimeControl "40/5400+30:1800+30"]

1. d4 {[%emt 0:00:00]} d5 {[%emt 0:00:04]} 2. c4 {[%emt 0:00:00]} e6 {[%emt 0:00:05]} 3. Nc3 {[%emt 0:00:00]} c6 {[%emt 0:00:06]} 4. Nf3 {[%emt 0:00:00]} Nf6 {[%emt 0:00:10]} 5. e3 {[%emt 0:00:03]} Nbd7 {[%emt 0:00:04]} 6. Bd3 {[%emt 0:00:18]} Bd6 {[%emt 0:00:15]} 7. e4 {[%emt 0:00:14]} Nxe4 {[%emt 0:00:10]} 8. Nxe4 {[%emt 0:00:14]} dxe4 9. Bxe4 {[%emt 0:00:16]} c5 {[%emt 0:00:17]} 10. O-O {[%emt 0:00:55]} Qc7 {[%emt 0:00:50] D46: Semi-Slav: 5 e3 Nbd7 6 Bd3, Black avoids the Meran} (10... O-O 11. Bc2 Qc7 12. Qd3 f5 13. Rd1 cxd4 14. Qxd4 Bc5 15. Qc3 a5 16. Be3 b6 17. Bxc5 bxc5 18. Ba4 Nb6 19. Bb5 Bd7 {1-0 (35) Fressinet,L (2712)-Hansen,C (2621) Oslo 2015}) 11. dxc5 {[%emt 0:21:06] LiveBook: 3 Games} Bxc5 {[%emt 0:02:16]} 12. b3 {[%emt 0:00:17]} O-O $146 {[%emt 0:03:18]} ({Predecessor:} 12... Nf6 13. Bc2 Qe7 14. Bb2 Ba3 15. Bc3 Bd7 16. Ne5 Bb4 17. Bb2 Ba3 18. Bxa3 Qxa3 {1-0 (62) Schmidt,G-Tresch,R (2312) Germany 2001}) 13. Bb2 {[%emt 0:04:05]} f6 {[%emt 0:11:22]} 14. Rc1 {[%emt 0:31:03]} Re8 {[%emt 0:16:47]} 15. Ng5 {[%emt 0:00:19]} Nf8 {[%emt 0:10:48]} 16. Nxh7 {[%emt 0:01:14]} Qf4 {[%emt 0:10:14]} 17. Bb1 {[%emt 0:13:47]} Re7 {[%emt 0:07:57]} 18. Nxf8 {[%emt 0:01:43]} Kxf8 {[%emt 0:00:12]} 19. Qh5 {[%emt 0:00:16]} e5 {[%emt 0:06:28]} 20. Qh8+ {[%emt 0:09:41]} Kf7 {[%emt 0:01:51]} 21. Bh7 {[%emt 0:00:02]} Bh3 $18 {[%emt 0:05:03]} (21... Bf5 22. Qxa8 Bxh7) 22. Qxa8 {[%emt 0:00:23]} f5 {[%emt 0:03:31]} 23. Qg8+ {[%emt 0:02:36]} Kf6 {[%emt 0:00:08]} 24. Qf8+ {[%emt 0:00:27]} Kg5 {[%emt 0:00:38]} 25. Rc3 {[%emt 0:00:44]} Bg4 {[%emt 0:01:39]} 26. Bc1 1-0

[Event "ESTCC U65 2018"]
[Site "Walbrzych"]
[Date "2018.04.15"]
[Round "2"]
[White "Rantanen, Veikko"]
[Black "Tichatschke, Wolfgang"]
[Result "1/2-1/2"]
[ECO "C09"]
[WhiteElo "2007"]
[BlackElo "1967"]
[Annotator "NA RC"]
[PlyCount "57"]
[EventDate "2018.??.??"]
[EventCountry "POL"]
[SourceTitle "playchess.com"]
[Source "ChessBase"]
[SourceQuality "1"]
[WhiteTeam "Finland"]
[BlackTeam "Germany"]
[WhiteTeamCountry "FIN"]
[BlackTeamCountry "GER"]
[TimeControl "40/5400+30:1800+30"]

1. e4 {[%emt 0:00:00]} e6 {[%emt 0:00:10]} 2. d4 {[%emt 0:00:00]} d5 {[%emt 0:00:04]} 3. Nd2 {[%emt 0:00:17]} c5 {[%emt 0:00:11]} 4. Ngf3 {[%emt 0:01:57]} Nc6 {[%emt 0:01:29]} 5. exd5 {[%emt 0:02:16]} exd5 {[%emt 0:02:17]} 6. Be2 {[%emt 0:01:23]} Nf6 {[%emt 0:00:57]} 7. O-O {[%emt 0:00:19]} Be7 {[%emt 0:03:37]} 8. dxc5 {[%emt 0:00:20]} Bxc5 {[%emt 0:00:29]} 9. Nb3 {[%emt 0:00:47] LiveBook: 29 Games} Be7 {[%emt 0:01:35] C08: French Tarrasch: 3...c5 4 exd5 exd5 sidelines} 10. Nfd4 {[%emt 0:05:45]} O-O {[%emt 0:00:39]} 11. Bf4 {[%emt 0:00:57]} a6 {[%emt 0:05:19]} 12. c3 {[%emt 0:02:34]} Na5 $146 {[%emt 0:05:14]} ({Find the theoretical novelty and annotate with similar games:} 12... Ne4 13. Qc2 Bd6 14. Bxd6 Qxd6 15. Rad1 Nf6 16. Nxc6 Qxc6 17. Bf3 {1-0 (57) Popov,V (2546)-Golubov,S (2347) St Petersburg 2014}) 13. Nxa5 {[%emt 0:01:54]} Qxa5 {[%emt 0:00:04]} 14. Bd3 {[%emt 0:01:04]} g6 {[%emt 0:10:40]} 15. Re1 {[%emt 0:02:22]} Re8 {[%emt 0:06:54]} 16. Qd2 {[%emt 0:08:04]} Qd8 {[%emt 0:13:39]} 17. h3 {[%emt 0:03:09]} Bd7 {[%emt 0:05:45]} 18. Re2 {[%emt 0:04:47]} Bf8 {[%emt 0:07:24]} 19. Rae1 {[%emt 0:01:15]} Qb6 {[%emt 0:01:18]} 20. Bg5 {[%emt 0:03:15]} Rxe2 {[%emt 0:02:01]} 21. Rxe2 {[%emt 0:00:17]} Re8 {[%emt 0:01:04]} 22. Rxe8 {[%emt 0:01:40]} Nxe8 {[%emt 0:01:48]} 23. Qe2 {[%emt 0:10:20]} Qd6 {[%emt 0:01:53]} 24. Qe3 {[%emt 0:08:26]} Ng7 {[%emt 0:06:04]} 25. Nb3 {[%emt 0:06:52]} Bf5 $11 {[%emt 0:04:56]} 26. Bf4 {[%emt 0:05:13]} Qd7 {[%emt 0:01:15]} 27. g4 {[%emt 0:03:41]} Bxd3 {[%emt 0:02:24]} 28. Qxd3 {[%emt 0:00:06]} Ne6 {[%emt 0:00:10]} 29. Be3 {[%emt 0:01:26]} 1/2-1/2

[Event "ESTCC U65 2018"]
[Site "Walbrzych"]
[Date "2018.04.15"]
[Round "2"]
[White "Olesen, Poul Erik Norgaard"]
[Black "Marks, Ian A"]
[Result "1-0"]
[ECO "B10"]
[WhiteElo "2005"]
[BlackElo "1895"]
[Annotator "NA RC"]
[PlyCount "63"]
[EventDate "2018.??.??"]
[EventCountry "POL"]
[SourceTitle "playchess.com"]
[Source "ChessBase"]
[SourceQuality "1"]
[WhiteTeam "Denmark"]
[BlackTeam "Scotland"]
[WhiteTeamCountry "DEN"]
[BlackTeamCountry "SCO"]
[TimeControl "40/5400+30:1800+30"]

1. e4 {[%emt 0:00:00]} c6 {[%emt 0:00:14]} 2. d3 {[%emt 0:00:00]} d5 {[%emt 0:00:08]} 3. Nd2 {[%emt 0:00:00]} e5 {[%emt 0:00:09]} 4. Ngf3 {[%emt 0:00:03]} Bd6 {[%emt 0:00:15]} 5. d4 {[%emt 0:00:22]} exd4 {[%emt 0:00:34]} 6. exd5 {[%emt 0:00:30]} Nf6 {[%emt 0:00:53] B10: Caro-Kann: 2 d3 and 2 c4} 7. Nxd4 {[%emt 0:13:28] LiveBook: 15 Games} (7. Nc4 Bb4+ 8. Bd2 Bxd2+ 9. Qxd2 cxd5 10. Nce5 O-O 11. O-O-O Nc6 12. Nxc6 bxc6 13. Qxd4 Bg4 14. Bd3 {1-0 (38) Carlsen,M (2832)-So,W (2815) chess.com INT 2017}) 7... Nxd5 {[%emt 0:02:18]} 8. Qe2+ {[%emt 0:18:00]} Qe7 {[%emt 0:04:11]} 9. Nc4 $146 {[%emt 0:06:34]} ({Find the theoretical novelty and annotate with similar games:} 9. Qxe7+ Bxe7 {½-½ (9) Landenbergue,C (2410)-Delemarre,J (2435) Bern 1998}) 9... Qxe2+ {[%emt 0:01:00]} 10. Bxe2 {[%emt 0:00:10]} Bc7 {[%emt 0:04:16]} 11. Bf3 {[%emt 0:02:14]} Nf4 {[%emt 0:02:23]} 12. g3 {[%emt 0:06:05]} Ne6 {[%emt 0:04:35]} 13. Nf5 {[%emt 0:00:46]} g6 {[%emt 0:04:23]} 14. Ncd6+ {[%emt 0:05:31]} Bxd6 {[%emt 0:04:43]} 15. Nxd6+ {[%emt 0:00:09]} Ke7 {[%emt 0:00:39]} 16. Nxc8+ {[%emt 0:02:28]} Rxc8 {[%emt 0:00:03]} 17. Be3 {[%emt 0:00:17]} Nd7 {[%emt 0:01:03]} 18. O-O-O {[%emt 0:00:55]} Ne5 {[%emt 0:01:02]} 19. Be2 {[%emt 0:02:50]} Rd8 {[%emt 0:07:04]} 20. f4 {[%emt 0:01:17]} Rxd1+ {[%emt 0:01:03]} 21. Rxd1 {[%emt 0:00:02]} Nd7 {[%emt 0:00:26]} 22. g4 $14 {[%emt 0:01:11]} Rd8 {[%emt 0:05:21]} 23. f5 {[%emt 0:04:09]} Nc7 {[%emt 0:08:34]} 24. h3 {[%emt 0:09:24]} Nd5 {[%emt 0:04:03]} 25. Bf2 {[%emt 0:02:54]} Nf4 {[%emt 0:03:31]} 26. Bf1 {[%emt 0:00:57]} gxf5 {[%emt 0:03:02]} 27. gxf5 {[%emt 0:01:01]} b6 {[%emt 0:14:20]} 28. Bg3 {[%emt 0:02:40]} Nh5 {[%emt 0:07:38]} 29. Bd6+ {[%emt 0:03:31]} Kf6 {[%emt 0:00:19]} 30. Bc7 {[%emt 0:00:20]} Re8 {[%emt 0:00:21]} 31. Rxd7 {[%emt 0:00:21]} Re1+ {[%emt 0:00:09]} 32. Rd1 {[%emt 0:00:15]} 1-0

[Event "ESTCC U65 2018"]
[Site "Walbrzych"]
[Date "2018.04.15"]
[Round "2"]
[White "Lundgren, Ulf"]
[Black "Jorgensen, Arne Bjorn"]
[Result "0-1"]
[ECO "A81"]
[WhiteElo "1989"]
[BlackElo "1956"]
[Annotator "NA RC"]
[PlyCount "37"]
[EventDate "2018.??.??"]
[EventCountry "POL"]
[SourceTitle "playchess.com"]
[Source "ChessBase"]
[SourceQuality "1"]
[WhiteTeam "Sweden"]
[BlackTeam "Denmark"]
[WhiteTeamCountry "SWE"]
[BlackTeamCountry "DEN"]
[TimeControl "40/5400+30:1800+30"]

1. d4 {[%emt 0:00:00]} f5 {[%emt 0:00:07]} 2. g3 {[%emt 0:00:00]} Nf6 {[%emt 0:00:05]} 3. Bg2 {[%emt 0:00:00]} g6 {[%emt 0:00:07]} 4. c4 {[%emt 0:01:07]} Bg7 {[%emt 0:00:05]} 5. e3 {[%emt 0:01:25]} O-O {[%emt 0:00:20]} 6. Ne2 {[%emt 0:00:20]} d6 {[%emt 0:01:14]} 7. Nbc3 {[%emt 0:00:59]} Nc6 {[%emt 0:03:24]} 8. O-O {[%emt 0:00:27]} e5 {[%emt 0:01:04]} 9. Bxc6 {[%emt 0:09:09] A25: English Opening vs King's Indian with ...Nc6 but without early d3} (9. Rb1 a5 10. a3 Kh8 11. b4 axb4 12. axb4 Ne7 13. Qb3 c6 14. Rd1 e4 15. f3 d5 16. cxd5 Nexd5 17. Nxd5 Nxd5 {0-1 (41) Reinderman,D (2573)-L'Ami,E (2615) Delft 2013}) 9... bxc6 {[%emt 0:00:18]} 10. dxe5 {[%emt 0:00:08]} dxe5 {[%emt 0:00:27]} 11. Qa4 $146 {[%emt 0:00:54]} ({Predecessor:} 11. Qxd8 Rxd8 12. b3 g5 13. Ba3 Re8 14. Rfe1 g4 15. Rad1 h5 16. Kg2 Kf7 {½-½ (34) Raicevic,M (2372)-Kontic,D (2343) Ulcinj 2014}) 11... Bd7 {[%emt 0:05:25]} 12. b3 {[%emt 0:02:03]} Rf7 {[%emt 0:03:56]} 13. Qa5 {[%emt 0:04:33]} Qe7 {[%emt 0:10:49]} 14. Ba3 {[%emt 0:02:11]} ({Much worse is} 14. Qxc7 Qb4 $15) 14... Qe6 {[%emt 0:03:28]} 15. Kg2 {[%emt 0:23:22]} f4 $1 {[%emt 0:03:40]} 16. exf4 {[%emt 0:01:08]} Qh3+ {[%emt 0:06:01]} 17. Kf3 {[%emt 0:02:35]} Qh5+ {[%emt 0:13:33]} 18. Kg2 {[%emt 0:00:59]} Bh3+ {[%emt 0:01:18]} 19. Kg1 {[%emt 0:00:36]} 0-1

[Event "ESTCC U65 2018"]
[Site "Walbrzych"]
[Date "2018.04.15"]
[Round "2"]
[White "Lehtosaari, Kalevi"]
[Black "Gromark, Per-Olof"]
[Result "1/2-1/2"]
[ECO "D53"]
[WhiteElo "1964"]
[BlackElo "1901"]
[Annotator "NA RC"]
[PlyCount "37"]
[EventDate "2018.??.??"]
[EventCountry "POL"]
[SourceTitle "playchess.com"]
[Source "ChessBase"]
[SourceQuality "1"]
[WhiteTeam "Finland"]
[BlackTeam "Sweden"]
[WhiteTeamCountry "FIN"]
[BlackTeamCountry "SWE"]
[TimeControl "40/5400+30:1800+30"]

1. c4 e6 2. Nc3 d5 3. d4 Nf6 4. Bg5 Be7 5. e3 Nbd7 6. Nf3 h6 7. Bh4 O-O 8. Bd3 c5 9. O-O b6 10. Re1 Bb7 11. Rc1 Ne4 12. Bxe7 Qxe7 13. Nd2 Nxc3 14. bxc3 dxc4 15. Bxc4 Rac8 16. e4 Rfd8 17. f4 $19 (17. Bf1 $15) 17... Qf6 18. g3 Nf8 19. Nf3 1/2-1/2

[Event "ESTCC U65 2018"]
[Site "Walbrzych"]
[Date "2018.04.15"]
[Round "2"]
[White "Ranki, Martti"]
[Black "Fitzke, Ulrich"]
[Result "1-0"]
[ECO "D30"]
[WhiteElo "1942"]
[BlackElo "1827"]
[Annotator "NA RC"]
[PlyCount "49"]
[EventDate "2018.??.??"]
[EventCountry "POL"]
[SourceTitle "playchess.com"]
[Source "ChessBase"]
[SourceQuality "1"]
[WhiteTeam "Finland"]
[BlackTeam "Germany"]
[WhiteTeamCountry "FIN"]
[BlackTeamCountry "GER"]
[TimeControl "40/5400+30:1800+30"]

1. d4 {[%emt 0:00:00]} d5 {[%emt 0:00:26]} 2. c4 {[%emt 0:00:00]} e6 {[%emt 0:00:22]} 3. Nf3 {[%emt 0:00:21]} Nf6 {[%emt 0:01:19]} 4. Bg5 {[%emt 0:00:35]} Be7 {[%emt 0:00:28]} 5. Nc3 {[%emt 0:00:18]} b6 {[%emt 0:05:16]} 6. e3 {[%emt 0:02:13]} Bb7 {[%emt 0:00:30]} 7. Bd3 {[%emt 0:00:27]} Nbd7 {[%emt 0:01:00] E12: Queen's Indian: Unusual White 4th moves, 4 a3, 4 Nc3 Bb7 5 a3 and 4 Nc3 Bb7} 8. O-O {[%emt 0:00:19]} c5 {[%emt 0:00:49]} (8... O-O 9. Qe2 Ne4 10. Bf4 Nxc3 11. bxc3 Nf6 12. Ne5 Rc8 13. Rac1 c5 14. h3 cxd4 15. cxd4 Ba3 16. Rc2 Qe7 17. Bg5 dxc4 18. Nxc4 {1-0 (39) Zherebukh,Y (2595)-Panchanatham,V (2352) Philadelphia 2016}) 9. Ne5 {[%emt 0:10:28]} cxd4 $146 {[%emt 0:02:22]} ({Predecessor:} 9... Nxe5 10. dxe5 Ne4 11. Bxe7 Qxe7 12. Qa4+ Qd7 13. Qxd7+ Kxd7 14. Rad1 Nxc3 15. bxc3 {½-½ (39) Schille,A (1127)-Gaul,L (1107) Sebnitz 2012}) 10. exd4 {[%emt 0:02:04]} Rc8 {[%emt 0:02:17]} 11. cxd5 {[%emt 0:04:42]} Nxd5 {[%emt 0:04:48]} 12. Bxe7 {[%emt 0:06:49]} Qxe7 {[%emt 0:03:06]} 13. Bb5 {[%emt 0:00:49]} N5f6 {[%emt 0:01:56]} 14. d5 {[%emt 0:05:38]} O-O {[%emt 0:01:25]} 15. Nxd7 {[%emt 0:00:44]} Nxd7 {[%emt 0:01:58]} 16. dxe6 {[%emt 0:01:51]} Nc5 {[%emt 0:04:19]} 17. exf7+ {[%emt 0:02:51]} Qxf7 {[%emt 0:00:38]} 18. Qg4 {[%emt 0:01:36]} Kh8 {[%emt 0:00:51]} 19. Rad1 {[%emt 0:02:03]} Rcd8 {[%emt 0:01:11]} 20. Bc4 {[%emt 0:01:24]} Qe7 {[%emt 0:04:57]} 21. h3 {[%emt 0:02:13]} Bc8 {[%emt 0:03:34]} 22. Qh5 {[%emt 0:02:44]} g6 {[%emt 0:03:31]} 23. Qh6 {[%emt 0:01:20]} Qf6 {[%emt 0:02:17]} 24. Qe3 {[%emt 0:02:29]} h5 (24... Be6 $16) 25. Qh6# 1-0

[Event "ESTCC U65 2018"]
[Site "Walbrzych"]
[Date "2018.04.15"]
[Round "2"]
[White "Mortensen, Steen Juul"]
[Black "Nilsson, Christer"]
[Result "0-1"]
[ECO "E94"]
[WhiteElo "1940"]
[BlackElo "1931"]
[Annotator "NA RC"]
[PlyCount "134"]
[EventDate "2018.??.??"]
[EventCountry "POL"]
[SourceTitle "playchess.com"]
[Source "ChessBase"]
[SourceQuality "1"]
[WhiteTeam "Denmark"]
[BlackTeam "Sweden"]
[WhiteTeamCountry "DEN"]
[BlackTeamCountry "SWE"]
[TimeControl "40/5400+30:1800+30"]

1. d4 {[%emt 0:00:00]} Nf6 {[%emt 0:00:09]} 2. c4 {[%emt 0:00:00]} g6 {[%emt 0:00:10]} 3. Nc3 {[%emt 0:00:00]} Bg7 {[%emt 0:00:06]} 4. e4 {[%emt 0:00:00]} d6 {[%emt 0:00:08]} 5. Nf3 {[%emt 0:00:02]} O-O {[%emt 0:00:18]} 6. Be2 {[%emt 0:00:10] LiveBook: 39007 Games} e5 {[%emt 0:00:20]} 7. O-O {[%emt 0:00:47]} Na6 {[%emt 0:00:44]} 8. dxe5 {[%emt 0:01:54]} dxe5 {[%emt 0:00:24]} 9. Be3 {[%emt 0:01:33]} c6 {[%emt 0:07:42]} 10. Qc2 {[%emt 0:02:58] E94: King's Indian: Classical: 6 Be2 e5 7 0-0: Various Black 7th moves} (10. Qxd8 Rxd8 11. h3 Re8 12. a3 b6 13. b4 Bb7 14. Nd2 Bf8 15. Rfd1 Kg7 16. Nb3 c5 17. bxc5 Nxc5 18. Nxc5 Bxc5 19. Bxc5 bxc5 {0-1 (31) Moradiabadi,E (2576)-Shimanov,A (2642) Burlingame 2017}) 10... Ng4 {[%emt 0:09:38]} 11. Bg5 {[%emt 0:03:19]} Qe8 {[%emt 0:00:51]} 12. h3 {[%emt 0:01:08]} h6 $146 {[%emt 0:06:34]} ({Predecessor:} 12... Nf6 13. Rad1 Nd7 14. Rfe1 Nac5 15. b4 Ne6 16. Be3 f5 17. c5 {0-1 (35) Thorn,E (2140)-Wallace,J (2383) Stockholm 2015}) 13. Bd2 {[%emt 0:06:10]} Nf6 {[%emt 0:01:11]} 14. Qc1 {[%emt 0:08:41]} Kh7 {[%emt 0:00:43]} 15. Be3 {[%emt 0:00:55]} Qe7 {[%emt 0:06:20]} 16. Qc2 {[%emt 0:05:29]} Nh5 {[%emt 0:07:38]} 17. Rfe1 {[%emt 0:04:45]} Nf4 {[%emt 0:03:37]} 18. Bf1 {[%emt 0:00:41]} Nc5 {[%emt 0:09:25]} 19. Rad1 {[%emt 0:04:10]} Nce6 {[%emt 0:01:41]} 20. Kh2 {[%emt 0:10:54]} Ng5 {[%emt 0:04:21]} 21. Nxg5+ {[%emt 0:04:33]} hxg5 {[%emt 0:00:22]} 22. g3 {[%emt 0:11:32]} Ne6 {[%emt 0:01:30]} 23. Qd2 {[%emt 0:03:58]} Rh8 {[%emt 0:01:36]} 24. Bg2 {[%emt 0:03:17]} Kg8 {[%emt 0:02:16]} 25. Qd6 {[%emt 0:03:42]} Qf6 {[%emt 0:00:34]} 26. Rh1 {[%emt 0:03:00]} Bf8 {[%emt 0:01:38]} 27. Qd2 {[%emt 0:00:18]} Be7 {[%emt 0:00:59]} 28. Kg1 {[%emt 0:05:47]} Kg7 {[%emt 0:01:30]} 29. Ne2 {[%emt 0:03:20]} Rd8 {[%emt 0:02:44]} 30. Qc1 {[%emt 0:01:34]} Bc5 {[%emt 0:02:44]} 31. Rxd8 {[%emt 0:01:09]} Qxd8 {[%emt 0:00:19]} 32. Bxc5 {[%emt 0:01:10]} Nxc5 {[%emt 0:00:07]} 33. Kh2 {[%emt 0:01:27]} Be6 {[%emt 0:03:32]} 34. Rd1 {[%emt 0:03:33]} Qf6 {[%emt 0:01:27]} 35. f3 {[%emt 0:00:59]} (35. Qe3 $142 b6 36. b3) 35... Rd8 {[%emt 0:01:20]} 36. Rxd8 {[%emt 0:01:16]} Qxd8 {[%emt 0:00:53]} 37. Qe3 {[%emt 0:01:43]} b6 {[%emt 0:00:54]} 38. b3 {[%emt 0:01:42]} f6 {[%emt 0:01:46]} 39. f4 {[%emt 0:00:52]} gxf4 {[%emt 0:01:14]} 40. gxf4 {[%emt 0:00:00]} Qd3 {[%emt 0:01:18]} 41. Qxd3 {[%emt 0:02:07]} Nxd3 {[%emt 0:01:34]} 42. fxe5 {[%emt 0:03:04]} fxe5 {[%emt 0:01:51]} 43. Kg3 {[%emt 0:01:09]} Kf6 {[%emt 0:01:36]} 44. Bf3 {[%emt 0:06:15]} a5 {[%emt 0:08:27]} 45. Bg4 {[%emt 0:02:48]} Nc5 {[%emt 0:01:44]} 46. Bxe6 {[%emt 0:02:43]} Nxe4+ {[%emt 0:00:41]} 47. Kg4 {[%emt 0:05:36]} Kxe6 {[%emt 0:00:18]} 48. h4 {[%emt 0:00:32]} c5 {[%emt 0:03:56]} (48... b5 $19 49. Nc1 bxc4 50. bxc4 Kf6) 49. h5 {[%emt 0:01:33]} gxh5+ {[%emt 0:00:47]} 50. Kxh5 {[%emt 0:00:01]} Kf5 {[%emt 0:01:12]} 51. Kh4 {[%emt 0:00:21]} Nf6 {[%emt 0:01:32]} 52. Kg3 {[%emt 0:00:36]} e4 {[%emt 0:05:21]} (52... Ke4 $142 53. Kf2 Kd3) 53. Nc3 {[%emt 0:01:29]} Ke5 {[%emt 0:01:09]} 54. Ne2 {[%emt 0:02:19]} Ne8 {[%emt 0:02:30]} 55. Kf2 {[%emt 0:00:36]} Nd6 {[%emt 0:03:00]} 56. Ke3 {[%emt 0:00:14]} Nf5+ {[%emt 0:01:07]} 57. Kd2 {[%emt 0:00:29]} (57. Kf2 $142 a4 58. bxa4) 57... Nd4 {[%emt 0:02:04]} 58. Nc3 {[%emt 0:00:10]} Kf4 {[%emt 0:01:17]} 59. Nd5+ {[%emt 0:00:15]} Kf3 {[%emt 0:00:58]} 60. Ne3 {[%emt 0:00:12]} Ne6 {[%emt 0:05:30]} 61. Nd5 {[%emt 0:01:15]} Kf2 {[%emt 0:02:07]} 62. Ne3 {[%emt 0:00:16]} Nf4 $2 {[%emt 0:04:54]} (62... Nf8 $19 63. Ng4+ Kf3 64. Nh2+ Kf2 65. Ng4+ Kg3) 63. Ng4+ $1 {[%emt 0:00:10]} Kg3 $11 {[%emt 0:01:31]} 64. Ne3 $2 {[%emt 0:00:17]} (64. Ne5 $11 a4 65. Ke3 axb3 66. axb3) 64... Kf3 {[%emt 0:00:21]} 65. Nf1 {[%emt 0:02:08]} Ng2 $19 {[%emt 0:00:22]} 66. Nh2+ {[%emt 0:00:18]} Kg3 {[%emt 0:00:14]} 67. Nf1+ {[%emt 0:02:02]} Kf2 {[%emt 0:00:06]} 0-1